[Event "2nd Kalyan Dombivali 2019"]
[Site "Kalyan"]
[Date "2019.02.01"]
[Round "6"]
[White "Satkar, Chirag"]
[Black "Vedant Nitin vekhande"]
[Result "1/2-1/2"]
[ECO "A52"]
[WhiteElo "2071"]
[BlackElo "1564"]
[Annotator "NA RC"]
[PlyCount "70"]
[EventDate "2019.01.28"]
[EventType "swiss"]
[EventRounds "10"]
[EventCountry "IND"]
[SourceTitle "playchess.com"]
[Source "ChessBase"]
[SourceQuality "1"]
[TimeControl "5400+30"]

{[%evp 8,70,41,23,43,32767,32767,32767,32767,32767,32767,32767,32767,32767,35,41,25,34,20,34,38,21,30,41,57,34,66,73,74,54,76,64,85,68,66,59,77,47,32767,32767,75,68,32767,60,45,25,22,23,74,60,102,62,72,51,55,47,57,42,65,0,43,0,56,0,48]} 1. d4 {[%emt 0:08:23]} Nf6 {[%emt 0:00:00]} 2. c4 {[%emt 0:02:05]} e5 {[%emt 0:00:00]} 3. dxe5 {[%emt 0:00:16]} Ng4 {[%emt 0:00:01]} 4. Nf3 {[%emt 0:00:44]} Nc6 {[%emt 0:00:28]} 5. Bf4 {[%emt 0:06:04]} Bb4+ {[%emt 0:00:18]} 6. Nbd2 {[%emt 0:04:53]} Qe7 {[%emt 0:00:12]} 7. a3 {[%emt 0:00:29]} Ngxe5 {[%emt 0:00:07]} 8. Nxe5 {[%emt 0:00:27]} Nxe5 {[%emt 0:00:05]} 9. e3 {[%emt 0:00:13]} Bxd2+ {[%emt 0:00:09]} 10. Qxd2 {[%emt 0:00:03]} O-O {[%emt 0:00:13]} (10... d6 11. Be2 {½-½ (48) Sargsyan,S (2463)-Gadimbayli,A (2419) Konya 2018}) 11. Be2 {[%emt 0:01:41]} d6 {[%emt 0:01:53]} 12. O-O {[%emt 0:01:09]} b6 {[%emt 0:00:45]} 13. b4 $146 {[%emt 0:10:02]} ({Predecessor:} 13. Rac1 Bb7 {½-½ (30) Belistri,U (2010)-Escofet Fernandez,J (2070) Montevideo 2013}) 13... Bb7 {[%emt 0:00:18]} 14. Rac1 {[%emt 0:00:10] A52: Budapest Gambit} c5 {[%emt 0:02:44]} (14... Rad8 15. Qb2 Ng6 16. Bg3 Nh4 17. Bxh4 Qxh4 18. Rfd1 Qg5 19. Bf1 Rfe8 20. a4 h5 21. c5 dxc5 22. Rxd8 Rxd8 23. bxc5 {½-½ (48) Sargsyan,S (2463)-Gadimbayli,A (2419) Konya 2018}) 15. Rfd1 {[%emt 0:02:45]} Rfd8 {[%emt 0:00:36]} 16. Qc3 {[%emt 0:03:51]} ({Predecessor:} 16. Qb2 Rac8 17. Rd2 Ng6 18. Bg3 Nh4 19. Bf1 Nf5 20. Qb1 Be4 21. Bd3 Nxg3 22. hxg3 {½-½ (30) Belistri,U (2010)-Escofet Fernandez,J (2070) Montevideo 2013}) 16... Ng6 {[%emt 0:00:58]} 17. Bg3 {[%emt 0:00:44]} Rac8 {[%emt 0:01:22]} 18. Bg4 {[%emt 0:04:02]} Rb8 {[%emt 0:04:19]} 19. Rd2 {[%emt 0:02:43]} Ne5 {[%emt 0:02:53]} 20. Be2 {[%emt 0:03:30]} f6 {[%emt 0:02:20]} 21. Rcd1 {[%emt 0:06:21]} Nf7 {[%emt 0:04:55]} 22. b5 {[%emt 0:04:20]} f5 {[%emt 0:02:20]} 23. Qc2 {[%emt 0:04:36]} Qe6 {[%emt 0:01:17]} 24. Bd3 {[%emt 0:03:54]} g6 {[%emt 0:01:05]} 25. Bh4 {[%emt 0:01:11]} Rd7 {[%emt 0:00:44]} 26. Qc3 {[%emt 0:01:33]} Re8 {[%emt 0:00:46]} 27. Qf6 {[%emt 0:01:57]} Ne5 {[%emt 0:03:39]} 28. Qxe6+ {[%emt 0:00:32]} Rxe6 {[%emt 0:00:18]} 29. Be2 {[%emt 0:00:14]} Kf7 {[%emt 0:00:35]} 30. a4 {[%emt 0:02:16]} a5 {[%emt 0:01:42]} 31. h3 {[%emt 0:05:44]} Ke8 {[%emt 0:00:21]} 32. Bg3 {[%emt 0:00:36]} Ke7 {[%emt 0:00:32]} 33. Bh4+ {[%emt 0:03:28]} Ke8 {[%emt 0:00:08]} 34. Bg3 {[%emt 0:02:26]} Ke7 {[%emt 0:00:06]} 35. Bh4+ $11 {[%emt 0:02:44]} Ke8 {[%emt 0:00:36]} 1/2-1/2

[Event "2nd Kalyan Dombivali 2019"]
[Site "Kalyan"]
[Date "2019.02.01"]
[Round "6"]
[White "Kadam Om Manish"]
[Black "Kshatriya Nitin Vekhande"]
[Result "1-0"]
[ECO "B78"]
[WhiteElo "1944"]
[BlackElo "1544"]
[Annotator "NA RC"]
[PlyCount "119"]
[EventDate "2019.01.28"]
[EventType "swiss"]
[EventRounds "10"]
[EventCountry "IND"]
[SourceTitle "playchess.com"]
[Source "ChessBase"]
[SourceQuality "1"]
[TimeControl "5400+30"]

{[%evp 8,65,39,23,46,46,63,58,52,50,46,37,45,41,48,19,31,57,70,-12,-1,-28,93,84,123,122,162,108,125,106,211,188,201,200,223,182,412,408,414,420,472,520,587,553,549,516,480,542,534,569,553,32767,32767,32767,32767,32767,754,782,775,760]} 1. e4 {[%emt 0:00:00]} c5 {[%emt 0:00:00]} 2. Nf3 {[%emt 0:01:15]} d6 {[%emt 0:00:00]} 3. d4 {[%emt 0:00:29]} cxd4 {[%emt 0:00:18]} 4. Nxd4 {[%emt 0:00:34]} Nf6 {[%emt 0:00:15]} 5. Nc3 {[%emt 0:00:27]} g6 {[%emt 0:00:22]} 6. Be3 {[%emt 0:00:34]} Bg7 {[%emt 0:00:25]} 7. f3 {[%emt 0:00:56]} O-O {[%emt 0:00:08]} ({Predecessor:} 7... Nc6 8. Qd2 {1-0 (52) Nemeth,G (1987)-Palla,A (2049) Balatonlelle 2013}) 8. Qd2 {[%emt 0:00:16]} Nc6 {[%emt 0:00:15]} 9. Bc4 {[%emt 0:01:18]} Bd7 {[%emt 0:00:35]} 10. O-O-O $146 {[%emt 0:00:44]} (10. Bb3 Rc8 {1-0 (46) Vachier Lagrave,M (2703)-Kasimdzhanov,R (2672) San Sebastian 2009}) 10... Rc8 {[%emt 0:00:34]} 11. Bb3 {[%emt 0:00:08]} Ne5 {[%emt 0:00:21]} 12. Kb1 {[%emt 0:00:16]} Re8 {[%emt 0:00:09]} 13. g4 {[%emt 0:07:18] B78: Sicilian Dragon: Yugoslav Attack, 9 Bc4 Bd7 10 0-0-0 Rc8} (13. a3 $14) (13. h4 h5 14. g4 hxg4 15. h5 Nxh5 16. Bh6 e6 17. Rdg1 g3 18. Rxh5 gxh5 19. Rxg3 Ng6 20. Nf5 Bf6 21. Nxd6 {1-0 (46) Vachier Lagrave,M (2703)-Kasimdzhanov,R (2672) San Sebastian 2009}) 13... b5 $1 {[%emt 0:00:31]} 14. g5 {[%emt 0:13:04]} Nh5 {[%emt 0:00:53]} (14... b4 $11 {remains equal.} 15. Ncb5 (15. gxf6 bxc3 16. fxe7 Qxe7 $15) 15... Nh5) 15. Ncxb5 {[%emt 0:00:39]} Bxb5 {[%emt 0:04:56]} 16. Nxb5 {[%emt 0:00:11]} Rb8 {[%emt 0:14:38]} ({Predecessor:} 16... a6 17. Nd4 Qc7 18. Qe2 Nc4 19. Bxc4 Qxc4 20. Qxc4 Rxc4 {1-0 (52) Nemeth,G (1987)-Palla,A (2049) Balatonlelle 2013}) 17. Nd4 {[%emt 0:22:39]} ({White should try} 17. Qe2 $18) 17... Qc7 {[%emt 0:05:44]} 18. Qe2 {[%emt 0:06:29]} a5 {[%emt 0:01:23]} (18... Rec8 $16 {is a better defense.}) 19. Nb5 {[%emt 0:02:22]} Qc6 {[%emt 0:16:45]} 20. a4 {[%emt 0:01:27]} Rf8 {[%emt 0:01:29]} 21. f4 {[%emt 0:05:27]} Qxe4 $2 {[%emt 0:10:34]} (21... Nd7 {was worth a try.} 22. Bd5 Qc8) 22. fxe5 {[%emt 0:00:58]} Qxe5 {[%emt 0:02:01]} 23. c3 {[%emt 0:04:59]} Kh8 {[%emt 0:07:17]} 24. Rhe1 {[%emt 0:00:24]} f5 {[%emt 0:02:18]} 25. gxf6 {[%emt 0:00:44]} Bxf6 {[%emt 0:03:04]} 26. Bd4 {[%emt 0:00:55]} Qxe2 {[%emt 0:00:47]} 27. Bxf6+ {[%emt 0:00:04]} Rxf6 {[%emt 0:02:25]} 28. Rxe2 {[%emt 0:00:12]} e5 {[%emt 0:00:51]} 29. Rxd6 {[%emt 0:03:32]} Rxd6 {[%emt 0:00:15]} 30. Nxd6 {[%emt 0:00:01]} Rxb3 {[%emt 0:00:12]} 31. Nb5 {[%emt 0:00:07]} Nf4 {[%emt 0:00:38]} 32. Rd2 {[%emt 0:00:28]} e4 {[%emt 0:00:22]} 33. Kc2 $18 {[%emt 0:01:10]} Rxb5 {[%emt 0:02:21]} 34. axb5 {[%emt 0:00:12]} Ne6 {[%emt 0:00:56]} 35. b6 {[%emt 0:00:12]} Nc5 {[%emt 0:00:15]} 36. Rd8+ {[%emt 0:00:02]} Kg7 {[%emt 0:00:12]} 37. b7 {[%emt 0:00:02]} Nxb7 {[%emt 0:00:11]} 38. Rd7+ {[%emt 0:00:02]} Kf6 {[%emt 0:00:08]} 39. Rxb7 {[%emt 0:00:03]} h5 {[%emt 0:00:12]} 40. Rb5 {[%emt 0:00:14]} g5 {[%emt 0:00:13]} 41. c4 {[%emt 0:00:07]} h4 {[%emt 0:00:08]} 42. Rd5 {[%emt 0:00:06]} g4 {[%emt 0:00:08]} 43. c5 {[%emt 0:00:18]} g3 {[%emt 0:00:25]} 44. hxg3 {[%emt 0:00:08]} hxg3 {[%emt 0:00:04]} 45. c6 {[%emt 0:00:05]} g2 {[%emt 0:00:16]} 46. Rd1 {[%emt 0:00:05]} Ke7 {[%emt 0:00:16]} 47. c7 {[%emt 0:00:06]} g1=Q {[%emt 0:00:11]} 48. Rxg1 {[%emt 0:00:06]} Kd7 {[%emt 0:00:11]} 49. Rg7+ {[%emt 0:00:03]} Kc8 {[%emt 0:00:07]} 50. Kd2 {[%emt 0:00:10]} a4 {[%emt 0:00:00]} 51. Ke3 {[%emt 0:00:00]} a3 {[%emt 0:00:00]} 52. bxa3 {[%emt 0:00:00]} Kb7 {[%emt 0:00:00]} 53. Kxe4 {[%emt 0:00:00]} Kc8 {[%emt 0:00:00]} 54. a4 {[%emt 0:00:00]} Kb7 {[%emt 0:00:08]} 55. a5 {[%emt 0:00:00]} Kc8 {[%emt 0:00:10]} 56. Rh7 {[%emt 0:00:04]} Kb7 {[%emt 0:00:14]} 57. a6+ {[%emt 0:00:05]} Kxa6 {[%emt 0:00:15]} 58. c8=Q+ {[%emt 0:00:06]} Kb6 {[%emt 0:00:08]} 59. Rb7+ {[%emt 0:00:15]} Ka6 {[%emt 0:00:06]} 60. Qa8# {[%emt 0:00:10]} 1-0

[Event "2nd Kalyan Dombivali 2019"]
[Site "Kalyan"]
[Date "2019.02.01"]
[Round "6"]
[White "Vijay, Anand M."]
[Black "Awade Pradeep"]
[Result "1-0"]
[ECO "B06"]
[WhiteElo "1841"]
[BlackElo "1538"]
[Annotator "NA RC"]
[PlyCount "109"]
[EventDate "2019.01.28"]
[EventType "swiss"]
[EventRounds "10"]
[EventCountry "IND"]
[SourceTitle "playchess.com"]
[Source "ChessBase"]
[SourceQuality "1"]
[TimeControl "5400+30"]

{[%evp 8,104,32,24,72,32767,50,26,15,1,27,37,62,28,96,4,0,9,32767,32767,32767,32767,32767,32767,34,0,-5,-13,0,-21,-22,-4,0,0,0,0,0,-28,-43,-50,32767,-45,0,-33,-38,-57,-39,-48,0,0,0,0,0,0,32767,-27,-35,-54,-47,-65,-55,-58,0,0,0,0,32767,32767,32767,32767,32767,32767,32767,32767,32767,32767,32767,32767,32767,32767,32767,32767,32767,32767,32767,32767,32767,32767,32767,32767,32767,32767,32767,32767,32767,32767,1849,1316,1749]} 1. e4 {[%emt 0:12:38]} g6 {[%emt 0:00:00]} 2. d4 {[%emt 0:00:12]} Bg7 {[%emt 0:00:00]} 3. Nc3 {[%emt 0:00:13]} d6 {[%emt 0:00:00]} 4. Be3 {[%emt 0:00:09]} Nf6 {[%emt 0:00:02]} 5. Qd2 {[%emt 0:00:05]} c6 {[%emt 0:01:31]} 6. f3 {[%emt 0:00:09]} b5 {[%emt 0:03:56]} 7. h4 {[%emt 0:00:39]} h5 {[%emt 0:04:22]} 8. O-O-O {[%emt 0:01:48]} Qa5 {[%emt 0:04:46]} 9. Kb1 {[%emt 0:00:27]} a6 {[%emt 0:05:34]} 10. Bd3 {[%emt 0:02:52]} Be6 {[%emt 0:35:08]} 11. Nd5 {[%emt 0:08:18]} ({White should play} 11. a3 $16) 11... Qxd2 {[%emt 0:03:09]} 12. Nxf6+ {[%emt 0:00:47]} Bxf6 {[%emt 0:00:02]} 13. Rxd2 {[%emt 0:00:07]} Bc4 {[%emt 0:04:19]} 14. g3 {[%emt 0:00:46]} Nd7 {[%emt 0:01:05]} 15. Nh3 {[%emt 0:00:25]} O-O {[%emt 0:01:38]} 16. Bg5 {[%emt 0:01:23]} Bxd3 {[%emt 0:04:29]} 17. Rxd3 {[%emt 0:00:42]} Rfc8 {[%emt 0:00:35]} 18. g4 {[%emt 0:00:57]} hxg4 {[%emt 0:01:22]} 19. fxg4 {[%emt 0:00:08]} Bxg5 {[%emt 0:01:27]} 20. Nxg5 {[%emt 0:00:49]} c5 {[%emt 0:03:39]} 21. h5 {[%emt 0:02:42]} f6 {[%emt 0:00:29]} 22. Ne6 {[%emt 0:01:14]} g5 {[%emt 0:01:28]} 23. dxc5 {[%emt 0:08:16]} Kf7 {[%emt 0:07:38]} 24. Nd4 {[%emt 0:11:28]} Ne5 {[%emt 0:02:17]} 25. Rg3 {[%emt 0:00:11]} Rxc5 {[%emt 0:00:18]} 26. Nf5 {[%emt 0:07:52]} Nc4 {[%emt 0:01:39]} 27. Rh2 {[%emt 0:00:53]} Re5 {[%emt 0:03:22]} 28. b3 {[%emt 0:00:12]} Na3+ {[%emt 0:00:16]} 29. Kb2 {[%emt 0:00:10]} b4 {[%emt 0:00:03]} 30. Re3 {[%emt 0:08:11]} Nb5 {[%emt 0:00:59]} 31. Rd2 {[%emt 0:01:07]} Nc3 {[%emt 0:01:03]} 32. Rd4 {[%emt 0:01:04]} Ra5 {[%emt 0:01:53]} 33. a4 {[%emt 0:01:10]} bxa3+ $1 {[%emt 0:00:38]} 34. Ka1 {[%emt 0:00:06]} Rc8 {[%emt 0:00:51]} (34... Rc5 $15) 35. Rc4 $1 {[%emt 0:04:52]} Rxc4 {[%emt 0:03:14]} 36. bxc4 {[%emt 0:00:01]} Nd1 {[%emt 0:00:14]} 37. Rh3 Rc5 {[%emt 0:01:20]} 38. h6 {[%emt 0:05:51]} Rc8 {[%emt 0:00:01]} 39. Rxa3 {[%emt 0:03:01]} Nf2 {[%emt 0:00:22]} 40. Rxa6 {[%emt 0:00:14]} Nxg4 {[%emt 0:00:34]} 41. Ra7 {[%emt 0:00:05]} Rh8 {[%emt 0:01:55]} 42. Rxe7+ {[%emt 0:00:16]} Kg6 {[%emt 0:00:16]} 43. Rg7+ {[%emt 0:00:19]} Kh5 {[%emt 0:00:04]} 44. h7 {[%emt 0:00:22]} Ne5 {[%emt 0:01:08]} 45. Kb2 {[%emt 0:04:53]} Kg4 {[%emt 0:00:33]} 46. Kc3 {[%emt 0:00:42]} Kf3 {[%emt 0:01:03]} 47. Kd4 {[%emt 0:00:37]} Nc6+ {[%emt 0:02:04]} 48. Kd5 {[%emt 0:00:17]} Nb4+ {[%emt 0:00:02]} 49. Ke6 {[%emt 0:00:40]} Kxe4 {[%emt 0:00:26]} 50. Nxd6+ {[%emt 0:00:03]} Kf3 {[%emt 0:00:32]} 51. Nf7 {[%emt 0:00:28]} Rxh7 $18 {[%emt 0:00:25]} 52. Rxh7 {[%emt 0:00:02]} g4 {[%emt 0:00:05]} 53. Kxf6 {[%emt 0:01:10]} g3 {[%emt 0:00:14]} 54. Ne5+ {[%emt 0:00:13]} Kf2 {[%emt 0:00:06]} 55. Nd3+ 1-0

[Event "2nd Kalyan Dombivali 2019"]
[Site "Kalyan"]
[Date "2019.02.01"]
[Round "6"]
[White "Nehete Akshay S"]
[Black "Borgaonkar Akshay"]
[Result "1-0"]
[ECO "E73"]
[WhiteElo "1788"]
[BlackElo "1534"]
[Annotator "NA RC"]
[PlyCount "72"]
[EventDate "2019.01.28"]
[EventType "swiss"]
[EventRounds "10"]
[EventCountry "IND"]
[SourceTitle "playchess.com"]
[Source "ChessBase"]
[SourceQuality "1"]
[TimeControl "5400+30"]

1. d4 {[%emt 0:00:00]} Nf6 2. c4 {[%emt 0:00:00]} g6 {[%emt 0:00:00]} 3. Nc3 {[%emt 0:00:05]} Bg7 {[%emt 0:00:00]} 4. e4 {[%emt 0:00:06]} d6 {[%emt 0:00:01]} 5. Be2 {[%emt 0:00:15]} O-O {[%emt 0:00:14]} 6. Bg5 {[%emt 0:00:46]} Qe8 {[%emt 0:08:22]} 7. e5 {[%emt 0:13:46]} Nfd7 {[%emt 0:13:15]} 8. Nd5 {[%emt 0:01:36]} f6 {[%emt 0:00:25]} 9. Nxc7 {[%emt 0:05:48]} Qd8 {[%emt 0:00:57]} 10. Ne6 {[%emt 0:01:49]} Qb6 {[%emt 0:00:16]} 11. Nxf8 {[%emt 0:02:38]} fxg5 {[%emt 0:02:56]} 12. Ne6 {[%emt 0:06:07]} dxe5 {[%emt 0:00:27]} 13. Nxg7 {[%emt 0:03:41]} Kxg7 {[%emt 0:00:10]} 14. dxe5 {[%emt 0:13:18]} Qxb2 {[%emt 0:00:52]} 15. Nf3 {[%emt 0:00:34]} Qc3+ {[%emt 0:00:05]} 16. Nd2 {[%emt 0:04:25]} Nxe5 {[%emt 0:00:50]} 17. O-O {[%emt 0:00:16]} Nbc6 {[%emt 0:01:29]} 18. Ne4 {[%emt 0:04:25]} Qa5 {[%emt 0:03:13]} 19. Nxg5 {[%emt 0:01:20]} Nxc4 {[%emt 0:00:17]} 20. Bxc4 {[%emt 0:01:08]} Qxg5 {[%emt 0:00:07]} 21. Rb1 {[%emt 0:11:56]} Qf4 {[%emt 0:18:43]} 22. Qe2 {[%emt 0:02:26]} Qf6 {[%emt 0:18:34]} 23. Rfe1 {[%emt 0:00:18]} e6 {[%emt 0:04:36]} 24. Qe4 {[%emt 0:02:22]} Kf7 {[%emt 0:03:04]} 25. Rb3 {[%emt 0:04:54]} Ke7 {[%emt 0:00:33]} 26. Bd5 {[%emt 0:04:21]} Nd4 {[%emt 0:03:19]} 27. Rb4 {[%emt 0:02:52]} Nf5 {[%emt 0:01:14]} 28. Bxb7 {[%emt 0:04:17]} Nd6 {[%emt 0:00:14]} 29. Qc6 {[%emt 0:01:21]} Bd7 {[%emt 0:02:53]} 30. Qc5 {[%emt 0:00:22]} Rf8 {[%emt 0:00:39]} 31. f3 {[%emt 0:00:52]} Rd8 {[%emt 0:01:03]} 32. Rd1 {[%emt 0:01:08]} Be8 {[%emt 0:00:10]} 33. f4 {[%emt 0:00:24]} Qf5 {[%emt 0:01:08]} 34. Qc3 {[%emt 0:02:17]} Ne4 {[%emt 0:00:17]} 35. Qc7+ {[%emt 0:00:30]} Rd7 {[%emt 0:00:23]} 36. Rdd4 {[%emt 0:00:03] Rd6 Rxd6+} Nc3 1-0

[Event "2nd Kalyan Dombivali 2019"]
[Site "Kalyan"]
[Date "2019.02.01"]
[Round "6"]
[White "Kelaskar, Chinmay"]
[Black "Jadhav Jyotiraditya"]
[Result "1/2-1/2"]
[ECO "A08"]
[WhiteElo "1764"]
[BlackElo "1358"]
[Annotator "NA RC"]
[PlyCount "79"]
[EventDate "2019.01.28"]
[EventType "swiss"]
[EventRounds "10"]
[EventCountry "IND"]
[SourceTitle "playchess.com"]
[Source "ChessBase"]
[SourceQuality "1"]
[TimeControl "5400+30"]

1. Nf3 {[%emt 0:52:31]} d5 {[%emt 0:00:00]} 2. g3 {[%emt 0:00:01]} c5 {[%emt 0:00:04]} 3. Bg2 {[%emt 0:00:04]} Nf6 {[%emt 0:01:09]} 4. O-O {[%emt 0:02:16]} Nc6 {[%emt 0:00:41]} 5. d4 {[%emt 0:00:01]} e6 {[%emt 0:01:26]} 6. b3 {[%emt 0:00:16]} b6 {[%emt 0:00:57]} 7. Bb2 {[%emt 0:00:03]} Be7 {[%emt 0:01:28]} 8. c4 {[%emt 0:00:24]} Bb7 {[%emt 0:03:43]} 9. Nbd2 {[%emt 0:02:49]} O-O {[%emt 0:01:24]} 10. Re1 {[%emt 0:00:13]} Rb8 {[%emt 0:05:11]} 11. a3 {[%emt 0:02:59]} dxc4 {[%emt 0:06:03]} 12. Nxc4 {[%emt 0:00:07]} cxd4 {[%emt 0:00:45]} 13. Nxd4 {[%emt 0:00:40]} Nxd4 {[%emt 0:00:38]} 14. Qxd4 {[%emt 0:01:21]} Bxg2 {[%emt 0:01:18]} 15. Kxg2 {[%emt 0:00:13]} Qxd4 {[%emt 0:03:13]} 16. Bxd4 {[%emt 0:00:02]} Rfd8 {[%emt 0:01:19]} 17. e3 {[%emt 0:03:14]} Rbc8 18. Rec1 {[%emt 0:04:27]} Nd7 {[%emt 0:10:13]} 19. b4 {[%emt 0:02:46]} f6 {[%emt 0:06:01]} 20. f4 {[%emt 0:00:47]} Rc7 {[%emt 0:00:30]} 21. Rc3 {[%emt 0:01:31]} Rdc8 {[%emt 0:22:38]} 22. Rac1 {[%emt 0:00:10]} b5 {[%emt 0:01:52]} 23. Na5 {[%emt 0:00:21]} Rxc3 {[%emt 0:00:05]} 24. Rxc3 {[%emt 0:00:03]} Rxc3 {[%emt 0:00:05]} 25. Bxc3 {[%emt 0:00:06]} Bd8 {[%emt 0:08:49]} 26. Nc6 {[%emt 0:00:16]} Bb6 {[%emt 0:00:06]} 27. Bd4 {[%emt 0:03:55]} a6 {[%emt 0:05:13]} 28. Kf3 {[%emt 0:00:35]} Bxd4 {[%emt 0:06:13]} 29. exd4 {[%emt 0:00:08]} Kf7 {[%emt 0:01:21]} 30. g4 {[%emt 0:01:01]} Nb6 {[%emt 0:01:06]} 31. Nb8 {[%emt 0:01:57]} Nc4 {[%emt 0:00:09]} 32. Nxa6 {[%emt 0:00:05]} Nxa3 {[%emt 0:00:04]} 33. Ke4 {[%emt 0:00:40]} Ke7 {[%emt 0:02:08]} 34. f5 {[%emt 0:02:41]} exf5+ {[%emt 0:02:45]} 35. gxf5 {[%emt 0:00:23]} Kd6 {[%emt 0:00:40]} 36. Nc5 {[%emt 0:03:00]} g5 {[%emt 0:02:51]} 37. d5 {[%emt 0:02:17]} h5 {[%emt 0:00:59]} 38. Nb7+ {[%emt 0:04:19]} Kc7 {[%emt 0:00:24]} 39. Nc5 {[%emt 0:00:16]} Kd6 {[%emt 0:00:10]} 40. Nb7+ {[%emt 0:05:07] Ke5+} 1/2-1/2

[Event "2nd Kalyan Dombivali 2019"]
[Site "Kalyan"]
[Date "2019.02.01"]
[Round "6"]
[White "Shreyas Ghadi"]
[Black "Arvind, Ramnath Iyer"]
[Result "1/2-1/2"]
[ECO "E42"]
[WhiteElo "1653"]
[BlackElo "1567"]
[Annotator "NA RC"]
[PlyCount "120"]
[EventDate "2019.01.28"]
[EventType "swiss"]
[EventRounds "10"]
[EventCountry "IND"]
[SourceTitle "playchess.com"]
[Source "ChessBase"]
[SourceQuality "1"]
[TimeControl "5400+30"]

1. d4 {[%emt 0:15:59]} Nf6 {[%emt 0:00:26]} 2. c4 {[%emt 0:00:52]} e6 {[%emt 0:00:30]} 3. Nc3 {[%emt 0:01:13]} Bb4 {[%emt 0:00:42]} 4. e3 {[%emt 0:01:11]} c5 {[%emt 0:01:24]} 5. Nge2 {[%emt 0:01:04]} cxd4 {[%emt 0:04:04]} 6. exd4 {[%emt 0:00:28]} d5 {[%emt 0:00:35]} 7. a3 {[%emt 0:02:53]} Bxc3+ {[%emt 0:01:49]} 8. Nxc3 {[%emt 0:00:09]} Nc6 {[%emt 0:00:42]} 9. c5 {[%emt 0:09:29]} h6 {[%emt 0:00:19]} 10. Bf4 {[%emt 0:04:59]} a6 {[%emt 0:03:24]} 11. Bd6 {[%emt 0:01:22]} Ne7 {[%emt 0:01:23]} 12. Na4 {[%emt 0:09:44]} Nd7 {[%emt 0:10:53]} 13. Bd3 {[%emt 0:04:18]} O-O {[%emt 0:05:45]} 14. Bc2 {[%emt 0:02:35]} Re8 {[%emt 0:00:59]} 15. Qd3 {[%emt 0:00:39]} f5 {[%emt 0:02:57]} 16. O-O-O {[%emt 0:07:18]} b5 {[%emt 0:03:05]} 17. Nc3 {[%emt 0:00:36]} Nc6 {[%emt 0:01:52]} 18. h4 {[%emt 0:06:38]} b4 {[%emt 0:00:18]} 19. Na4 {[%emt 0:00:01]} Nf6 {[%emt 0:04:34]} 20. Nb6 {[%emt 0:04:15]} Ra7 {[%emt 0:00:03]} 21. f3 {[%emt 0:01:39]} bxa3 {[%emt 0:01:40]} 22. bxa3 {[%emt 0:00:01]} Nd7 {[%emt 0:01:40]} 23. g4 {[%emt 0:01:17]} Nxb6 {[%emt 0:01:48]} 24. cxb6 {[%emt 0:00:01]} Rf7 {[%emt 0:00:29]} 25. Bc5 {[%emt 0:01:01]} Na5 {[%emt 0:02:24]} 26. Rde1 {[%emt 0:15:36]} Nc4 {[%emt 0:02:54]} 27. gxf5 {[%emt 0:00:02]} exf5 {[%emt 0:01:40]} 28. Rxe8+ {[%emt 0:00:08]} Qxe8 {[%emt 0:00:24]} 29. Bb3 {[%emt 0:00:02]} Bb7 {[%emt 0:04:09]} 30. Rf1 {[%emt 0:02:16]} Qe3+ {[%emt 0:02:49]} 31. Qxe3 {[%emt 0:00:10]} Nxe3 {[%emt 0:00:01]} 32. Re1 {[%emt 0:00:06]} f4 {[%emt 0:00:07]} 33. Bd6 {[%emt 0:00:03]} g5 {[%emt 0:00:48]} 34. hxg5 {[%emt 0:00:51]} hxg5 {[%emt 0:00:00]} 35. Rg1 {[%emt 0:00:10]} Rg7 {[%emt 0:00:57]} 36. Be5 {[%emt 0:02:28]} Rg6 {[%emt 0:00:30]} 37. Bxf4 {[%emt 0:00:01]} Rxb6 {[%emt 0:02:00]} 38. Ba2 {[%emt 0:01:21]} Nc4 {[%emt 0:00:23]} 39. Rxg5+ {[%emt 0:00:50]} Kf7 {[%emt 0:01:30]} 40. Bxc4 {[%emt 0:00:55]} dxc4 {[%emt 0:00:46]} 41. d5 {[%emt 0:00:02]} Rb5 {[%emt 0:01:18]} 42. d6 {[%emt 0:01:36]} Rxg5 {[%emt 0:00:16]} 43. Bxg5 {[%emt 0:00:01]} Ke6 {[%emt 0:00:00]} 44. Bf4 {[%emt 0:00:46]} Bxf3 {[%emt 0:00:40]} 45. Kc2 {[%emt 0:00:00]} Be2 {[%emt 0:00:37]} 46. Kc3 {[%emt 0:00:01]} Kd7 {[%emt 0:00:45]} 47. Kb4 {[%emt 0:00:14]} Kc6 {[%emt 0:00:27]} 48. a4 {[%emt 0:00:40]} Bf1 {[%emt 0:01:17]} 49. Kc3 {[%emt 0:00:15]} Be2 {[%emt 0:00:11]} 50. Kd4 {[%emt 0:00:11]} Kd7 {[%emt 0:01:02]} 51. a5 {[%emt 0:01:18]} Bf1 {[%emt 0:01:00]} 52. Kc5 {[%emt 0:00:25]} c3 {[%emt 0:00:18]} 53. Kd4 {[%emt 0:00:14]} c2 {[%emt 0:00:23]} 54. Kc3 {[%emt 0:00:17]} c1=Q+ {[%emt 0:00:29]} 55. Bxc1 {[%emt 0:00:03]} Kxd6 {[%emt 0:00:04]} 56. Kb4 {[%emt 0:00:15]} Bb5 {[%emt 0:00:21]} 57. Be3 {[%emt 0:00:07]} Kd5 {[%emt 0:00:18]} 58. Bb6 {[%emt 0:00:04]} Kc6 {[%emt 0:00:30]} 59. Bd8 {[%emt 0:02:30]} Kd7 {[%emt 0:00:02]} 60. Bb6 {[%emt 0:00:06]} Kc6 {[%emt 0:01:15]} 1/2-1/2

[Event "2nd Kalyan Dombivali 2019"]
[Site "Kalyan"]
[Date "2019.02.01"]
[Round "6"]
[White "Chhabra Aakash"]
[Black "Soni Deepak R"]
[Result "1/2-1/2"]
[ECO "A45"]
[WhiteElo "1619"]
[BlackElo "1425"]
[Annotator "NA RC"]
[PlyCount "52"]
[EventDate "2019.01.28"]
[EventType "swiss"]
[EventRounds "10"]
[EventCountry "IND"]
[SourceTitle "playchess.com"]
[Source "ChessBase"]
[SourceQuality "1"]
[TimeControl "5400+30"]

1. d4 {[%emt 0:00:00]} Nf6 {[%emt 0:00:08]} 2. Bg5 {[%emt 0:01:47]} e6 {[%emt 0:00:02]} 3. e4 {[%emt 0:00:09]} h6 {[%emt 0:00:54]} 4. Bxf6 {[%emt 0:00:07]} Qxf6 {[%emt 0:00:03]} 5. c3 {[%emt 0:00:11]} d6 {[%emt 0:00:59]} 6. Bd3 {[%emt 0:00:07]} c6 {[%emt 0:02:09]} 7. Ne2 {[%emt 0:00:13]} e5 {[%emt 0:03:15]} 8. Nd2 {[%emt 0:00:06]} g5 {[%emt 0:11:07]} 9. Qb3 {[%emt 0:04:34]} Bg7 {[%emt 0:05:57]} 10. O-O-O {[%emt 0:01:34]} Nd7 {[%emt 0:06:36]} 11. g3 {[%emt 0:02:52]} b5 {[%emt 0:08:14]} 12. f4 {[%emt 0:03:42]} Qe7 {[%emt 0:06:32]} 13. Nf3 {[%emt 0:08:57]} a5 {[%emt 0:05:31]} 14. Rhf1 {[%emt 0:14:25]} Ba6 {[%emt 0:14:00]} 15. dxe5 {[%emt 0:02:08]} dxe5 {[%emt 0:03:48]} 16. fxe5 {[%emt 0:00:15]} Nc5 {[%emt 0:11:53]} 17. Qc2 {[%emt 0:02:25]} Nxd3+ {[%emt 0:02:03]} 18. Qxd3 {[%emt 0:01:28]} b4 {[%emt 0:01:24]} 19. c4 {[%emt 0:02:48]} O-O {[%emt 0:03:26]} 20. Ned4 {[%emt 0:01:39]} Qc5 {[%emt 0:01:49]} 21. b3 {[%emt 0:02:00]} Rad8 {[%emt 0:03:17]} 22. g4 {[%emt 0:06:39]} Bxe5 {[%emt 0:00:41]} 23. Nxe5 {[%emt 0:02:54]} Qxe5 {[%emt 0:00:02]} 24. Nxc6 {[%emt 0:01:07]} Qa1+ {[%emt 0:00:52]} 25. Qb1 {[%emt 0:00:11]} Qc3+ {[%emt 0:00:37]} 26. Qc2 {[%emt 0:00:39]} Qa1+ {[%emt 0:00:03]} 1/2-1/2